fUSD/lending_fUSD_20241106
["ID","MTS","AMOUNT","RATE_DAILY","PERIOD"]
[341481662,1730920307457,-706.05,0.00031232,2]
[341481663,1730920307466,-280.903323,0.00031232,7]
[341481664,1730920307476,-651.62,0.00031232,2]
[341481665,1730920307486,-2251.89,0.00031232,2]
[341481666,1730920307496,-280.903323,0.00031232,7]
[341481667,1730920307505,-1884.31,0.00031232,2]
[341481668,1730920307515,-732.87,0.00031232,2]
[341481669,1730920307524,-500.0,0.00031232,2]
[341481670,1730920307534,-151.0,0.00031232,7]
[341481671,1730920307543,-730.51,0.00031232,2]
[341481672,1730920307552,-2703.76,0.00031232,2]
[341481673,1730920307561,-272.123921,0.00031232,7]
[341481674,1730920307571,-759.2,0.00031232,2]
[341481675,1730920307580,-601.73,0.00031232,2]
[341481676,1730920307591,-4472.046259,0.00031232,7]
[341481677,1730920307600,-1846.6,0.00031232,2]
[341481678,1730920307610,-500.0,0.00031232,2]
[341481679,1730920307619,-2388.47,0.00031232,2]
[341481680,1730920307629,-500.0,0.00031232,2]
[341481681,1730920307642,-4472.046259,0.00031232,7]
[341481682,1730920307651,-217.442755,0.00031232,2]
[341481683,1730920307661,-1087.87,0.00031232,2]
[341481684,1730920307670,-10275.63,0.00031232,2]
[341481685,1730920307680,-228.879307,0.00031232,2]
[341481686,1730920307690,-1027.83,0.00031232,2]
[341481687,1730920307699,-934.72,0.00031232,2]
[341481688,1730920307708,-500.0,0.00031232,2]
[341481689,1730920307718,-680.02,0.00031232,2]
[341481690,1730920307728,-984.02,0.00031232,2]
[341481691,1730920307737,-151.0,0.00031232,7]
[341481692,1730920307746,-2654.17,0.00031232,2]
[341481693,1730920307755,-500.0,0.00031232,2]
[341481694,1730920307771,-763.29,0.00031232,2]
[341481695,1730920307781,-2923.01,0.00031232,2]
[341481696,1730920307791,-500.0,0.00031232,2]
[341481697,1730920307800,-1057.64,0.00031232,2]
[341481698,1730920307810,-500.0,0.00031232,2]
[341481699,1730920307819,-500.0,0.00031232,2]
[341481700,1730920307829,-500.0,0.00031232,2]
[341481701,1730920307839,-151.0,0.00031232,7]
[341481702,1730920307848,-669.62,0.00031232,2]
[341481703,1730920307857,-718.6,0.00031232,2]
[341481704,1730920307866,-3084.36,0.00031232,2]
[341481705,1730920307876,-500.0,0.00031232,2]
[341481706,1730920307886,-727.89,0.00031232,2]
[341481707,1730920307895,-1861.65,0.00031232,2]
[341481708,1730920307905,-36940.57,0.00031232,2]
[341481709,1730920307915,-1316.34,0.00031232,2]
[341481710,1730920307924,-3009.75,0.00031232,2]
[341481711,1730920307934,-500.0,0.00031232,2]
[341481712,1730920307944,-500.0,0.00031232,2]
[341481713,1730920307954,-500.0,0.00031232,2]
[341481714,1730920307964,-151.0,0.00031232,7]
[341481715,1730920307974,-1149.45,0.00031232,2]
[341481716,1730920307983,-4459.35,0.00031232,2]
[341481717,1730920307993,-539.21,0.00031232,2]
[341481718,1730920308003,-1631.52,0.00031232,2]
[341481719,1730920308012,-151.0,0.00031232,7]
[341481720,1730920308023,-777.39,0.00031232,2]
[341481721,1730920308032,-6541.84,0.00031232,2]
[341481722,1730920308042,-500.0,0.00031232,2]
[341481723,1730920308052,-500.0,0.00031232,2]
[341481724,1730920308063,-580.25,0.00031232,2]
[341481725,1730920308072,-2448.68,0.00031232,2]
[341481726,1730920308082,-1611.55,0.00031232,2]
[341481727,1730920308093,-1675.07,0.00031232,2]
[341481728,1730920308102,-2842.56,0.00031232,2]
[341481729,1730920308112,-2090.64,0.00031232,2]
[341481730,1730920308122,-729.17,0.00031232,2]
[341481731,1730920308132,-4119.94,0.00031232,2]
[341481732,1730920308142,-1561.32,0.00031232,2]
[341481733,1730920308152,-500.0,0.00031232,2]
[341481734,1730920308161,-1446.82,0.00031232,2]
[341481735,1730920308171,-908.03,0.00031232,2]
[341481736,1730920308182,-151.0,0.00031232,7]
[341481737,1730920308191,-1649.61,0.00031232,2]
[341481738,1730920308202,-3168.62,0.00031232,2]
[341481739,1730920308212,-731.26,0.00031232,2]
[341481740,1730920308222,-3106.24,0.00031232,2]
[341481741,1730920308231,-3266.44,0.00031232,2]
[341481742,1730920308241,-500.0,0.00031232,2]
[341481743,1730920308250,-752.29,0.00031232,2]
[341481744,1730920308261,-2478.44,0.00031232,2]
[341481745,1730920308271,-714.92,0.00031232,2]
[341481746,1730920308281,-645.24,0.00031232,2]
[341481747,1730920308291,-822.65,0.00031232,2]
[341481748,1730920308375,-2093.22,0.00031232,2]
[341481749,1730920308384,-6208.06,0.00031232,2]
[341481750,1730920308394,-1251.86,0.00031232,2]
[341481751,1730920308404,-2267.91,0.00031232,2]
[341481752,1730920308413,-932.36,0.00031232,2]
[341481753,1730920308422,-1161.0,0.00031232,2]
[341481754,1730920308433,-831.94,0.00031232,2]
[341481755,1730920308443,-726.61,0.00031232,2]
[341481756,1730920308452,-500.0,0.00031232,2]
[341481757,1730920308462,-627.41,0.00031232,2]
[341481758,1730920308471,-1064.72,0.00031232,2]
[341481759,1730920308481,-1820.52,0.00031232,2]
[341481760,1730920308490,-1990.87,0.00031232,2]
[341481761,1730920308500,-750.06,0.00031232,2]
[341481762,1730920308512,-500.0,0.00031232,2]
[341481763,1730920308521,-10580.04,0.00031232,2]
[341481764,1730920308531,-1538.2,0.00031232,2]
[341481765,1730920308540,-5050.46,0.00031232,2]
[341481766,1730920308549,-1128.8,0.00031232,2]
[341481767,1730920308558,-7716.34,0.00031232,2]
[341481768,1730920308567,-3986.66,0.00031232,2]
[341481769,1730920308578,-656.74,0.00031232,2]
[341481770,1730920308587,-5027.84,0.00031232,2]
[341481771,1730920308597,-500.63,0.00031232,2]
[341481772,1730920308607,-4036.63,0.00031232,2]
[341481773,1730920308617,-6250.81,0.00031232,2]
[341481774,1730920308627,-934.04,0.00031232,2]
[341481775,1730920308639,-500.0,0.00031232,2]
[341481776,1730920308649,-2428.87,0.00031232,2]
[341481777,1730920308658,-3700.97,0.00031232,2]
[341481778,1730920308668,-1135.07,0.00031232,2]
[341481779,1730920308678,-500.0,0.00031232,2]
[341481780,1730920308689,-3817.82,0.00031232,2]
[341481781,1730920308698,-3046.7,0.00031232,2]
[341481782,1730920308707,-740.35,0.00031232,2]
[341481783,1730920308718,-3060.48,0.00031232,2]
[341481784,1730920308727,-265.32499565,0.00031232,2]
[341481785,1730920308737,-1194.34,0.00031232,2]
[341481786,1730920308746,-3836.62,0.00031232,2]
[341481787,1730920308755,-4916.89,0.00031232,2]
[341481788,1730920308764,-3245.5,0.00031232,2]
[341481789,1730920308774,-151.0,0.00031232,7]
[341481790,1730920308785,-1506.02,0.00031232,2]
[341481791,1730920308795,-2015.43,0.00031232,2]
[341481792,1730920308804,-500.0,0.00031232,2]
[341481793,1730920308813,-512.382164,0.00031232,7]
[341481794,1730920308823,-1997.41,0.00031232,2]
[341481795,1730920308832,-198.08862341,0.00031232,2]
[341481796,1730920308842,-548.49,0.00031232,2]
[341481797,1730920308852,-1188.15,0.00031232,2]
[341481798,1730920308861,-500.0,0.00031232,2]
[341481799,1730920308871,-512.382164,0.00031232,7]
[341481800,1730920308880,-3551.02,0.00031232,2]
[341481801,1730920308889,-151.0,0.00031232,7]
[341481802,1730920308899,-9431.91,0.00031232,2]
[341481803,1730920308908,-543.87,0.00031232,2]
[341481804,1730920308918,-500.0,0.00031232,2]
[341481805,1730920308927,-2959.67,0.00031232,2]
[341481806,1730920308936,-843.81,0.00031232,2]
[341481807,1730920308946,-151.0,0.00031232,7]
[341481808,1730920308955,-2985.74,0.00031232,2]
[341481809,1730920308965,-643.72,0.00031232,2]
[341481810,1730920308974,-642.61,0.00031232,2]
[341481811,1730920308983,-151.0,0.00031232,7]
[341481812,1730920308993,-528.21,0.00031232,2]
[341481813,1730920309003,-2640.34,0.00031232,2]
[341481814,1730920309013,-636.38,0.00031232,2]
[341481815,1730920309023,-3511.16,0.00031232,2]
[341481816,1730920309032,-500.0,0.00031232,2]
[341481817,1730920309042,-836.94,0.00031232,2]
[341481818,1730920309051,-817.7,0.00031232,2]
[341481819,1730920309061,-1645.62,0.00031232,2]
[341481820,1730920309071,-500.0,0.00031232,2]
[341481821,1730920309080,-1697.61,0.00031232,2]
[341481822,1730920309090,-643.83,0.00031232,2]
[341481823,1730920309101,-1293.6,0.00031232,2]
[341481824,1730920309111,-2894.45,0.00031232,2]
[341481825,1730920309120,-820.62,0.00031232,2]
[341481826,1730920309130,-6435.46964551,0.00031232,2]
[341481827,1730920309140,-150.0,0.00031243,2]
[341481828,1730920309151,-150.0,0.00031247,2]
[341481829,1730920309160,-1104.99612953,0.00031273,5]
[341481830,1730920309170,-150.0,0.00031275,2]
[341481831,1730920309181,-360.0,0.0003129,2]
[341481832,1730920309191,-161.616,0.0003129,2]
[341481833,1730920309201,-150.0,0.00031298,2]
[341481834,1730920309211,-150.0,0.00031318,2]
[341481835,1730920309222,-150.0,0.00031334,2]
[341481836,1730920309231,-150.0,0.00031371,2]
[341481837,1730920309241,-322.35,0.00031373,2]
[341481838,1730920309251,-150.0,0.00031389,2]
[341481839,1730920309260,-68367.35,0.000314,7]
[341481840,1730920309270,-10932.82,0.000314,7]
[341481841,1730920309280,-160.0,0.000314,120]
[341481842,1730920309292,-150.0,0.00031416,2]
[341481843,1730920309305,-150.0,0.00031423,2]
[341481844,1730920309316,-150.0,0.0003143,2]
[341481845,1730920309328,-337.69,0.00031462,7]
[341481846,1730920309340,-9672.87,0.00031462,7]
[341481847,1730920309352,-895.73,0.00031462,7]
[341481848,1730920309361,-931.93,0.00031462,7]
[341481849,1730920309371,-8625.57,0.00031462,7]
[341481850,1730920309380,-150.0,0.00031465,2]
[341481851,1730920309391,-150.0,0.0003147,2]
[341481852,1730920309400,-150.0,0.00031471,2]
[341481853,1730920309409,-150.0,0.00031479,2]
[341481854,1730920309419,-150.0,0.00031484,2]
[341481855,1730920309428,-150.0,0.0003149,2]
[341481856,1730920309438,-150.0,0.0003149,2]
[341481857,1730920309447,-150.0,0.00031493,2]
[341481858,1730920309457,-150.0,0.00031493,2]
[341481859,1730920309466,-150.0,0.00031494,2]
[341481860,1730920309477,-150.0,0.00031499,2]
[341481861,1730920309486,-500.0,0.00031505,2]
[341481862,1730920309495,-661.67,0.00031505,2]
[341481863,1730920309504,-500.0,0.00031506,2]
[341481864,1730920309513,-2920.66,0.00031506,2]
[341481865,1730920309523,-614.25,0.00031506,2]
[341481866,1730920309532,-500.0,0.00031506,2]
[341481867,1730920309541,-750.76,0.00031506,2]
[341481868,1730920309550,-1205.75,0.00031506,2]
[341481869,1730920309560,-500.0,0.00031506,2]
[341481870,1730920309569,-1062.35,0.00031506,2]
[341481871,1730920309579,-997.57,0.00031506,2]
[341481872,1730920309588,-500.0,0.00031506,2]
[341481873,1730920309597,-500.0,0.00031506,2]
[341481874,1730920309607,-500.0,0.00031506,2]
[341481875,1730920309616,-1292.06,0.00031506,2]
[341481876,1730920309626,-500.0,0.00031506,2]
[341481877,1730920309636,-500.0,0.00031506,2]
[341481878,1730920309647,-163.46956596,0.00031506,2]
[341481879,1730920309656,-1826.45,0.00031506,2]
[341481880,1730920309666,-621.32,0.00031506,2]
[341481881,1730920309676,-663.78,0.00031506,2]
[341481882,1730920309685,-546.43,0.00031506,2]
[341481883,1730920309695,-617.91,0.00031506,2]
[341481884,1730920309704,-150.0,0.00031506,2]
[341481885,1730920309713,-1790.04,0.00031506,2]
[341481886,1730920309722,-500.0,0.00031506,2]
[341481887,1730920309731,-1554.56,0.00031506,2]
[341481888,1730920309741,-525.88,0.00031506,2]
[341481889,1730920309751,-500.0,0.00031506,2]
[341481890,1730920309760,-711.29,0.00031506,2]
[341481891,1730920309769,-1234.48,0.00031506,2]
[341481892,1730920309779,-500.0,0.00031506,2]
[341481893,1730920309788,-1153.06,0.00031506,2]
[341481894,1730920309798,-500.0,0.00031506,2]
[341481895,1730920309808,-957.34,0.00031506,2]
[341481896,1730920309817,-500.0,0.00031506,2]
[341481897,1730920309827,-1196.66,0.00031506,2]
[341481898,1730920309838,-1001.64,0.00031506,2]
[341481899,1730920309848,-1472.58,0.00031506,2]
[341481900,1730920309857,-500.0,0.00031506,2]
[341481901,1730920309866,-1605.02,0.00031506,2]
[341481902,1730920309877,-271.12,0.00031506,2]
[341481903,1730920309886,-652.62,0.00031506,2]
[341481904,1730920309895,-312.44029682,0.00031506,2]
[341481905,1730920309903,-1379.21,0.00031506,2]
[341481906,1730920309913,-1209.69,0.00031506,2]
[341481907,1730920309922,-1638.01,0.00031506,2]
[341481908,1730920309931,-500.0,0.00031506,2]
[341481909,1730920309942,-1179.88,0.00031506,2]
[341481910,1730920309951,-500.0,0.00031506,2]
[341481911,1730920309962,-639.69,0.00031506,2]
[341481912,1730920309972,-600.21,0.00031506,2]
[341481913,1730920309982,-500.0,0.00031506,2]
[341481914,1730920309992,-912.36,0.00031506,2]
[341481915,1730920310001,-508.65,0.00031506,2]
[341481916,1730920310011,-500.0,0.00031506,2]
[341481917,1730920310020,-610.62,0.00031506,2]
[341481918,1730920310030,-500.0,0.00031506,2]
[341481919,1730920310041,-500.0,0.00031506,2]
[341481920,1730920310051,-1403.53,0.00031506,2]
[341481921,1730920310060,-951.98,0.00031506,2]
[341481922,1730920310070,-1718.49,0.00031506,2]
[341481923,1730920310080,-500.0,0.00031506,2]
[341481924,1730920310090,-770.26,0.00031506,2]
[341481925,1730920310100,-534.23,0.00031506,2]
[341481926,1730920310110,-886.88,0.00031506,2]
[341481927,1730920310119,-500.0,0.00031506,2]
[341481928,1730920310128,-500.0,0.00031506,2]
[341481929,1730920310138,-3128.73,0.00031506,2]
[341481930,1730920310147,-591.92,0.00031506,2]
[341481931,1730920310156,-1587.38,0.00031506,2]
[341481932,1730920310166,-672.38,0.00031506,2]
[341481933,1730920310175,-1225.74,0.00031506,2]
[341481934,1730920310185,-631.72,0.00031506,2]
[341481935,1730920310194,-1710.63,0.00031506,2]
[341481936,1730920310203,-813.74,0.00031506,2]
[341481937,1730920310212,-500.0,0.00031506,2]
[341481938,1730920310221,-500.0,0.00031506,2]
[341481939,1730920310230,-500.0,0.00031506,2]
[341481940,1730920310239,-747.59,0.00031506,2]
[341481941,1730920310249,-1093.9,0.00031506,2]
[341481942,1730920310258,-500.0,0.00031506,2]
[341481943,1730920310267,-248.35468377,0.00031506,2]
[341481944,1730920310276,-500.0,0.00031506,2]
[341481945,1730920310285,-559.12,0.00031506,2]
[341481946,1730920310295,-500.0,0.00031506,2]
[341481947,1730920310307,-869.22,0.00031506,2]
[341481948,1730920310317,-815.31,0.00031506,2]
[341481949,1730920310327,-828.15,0.00031506,2]
[341481950,1730920310337,-948.69,0.00031506,2]
[341481951,1730920310349,-616.20710746,0.00031506,2]
[341481952,1730920310359,-500.0,0.00031506,2]
[341481953,1730920310370,-4834.15456648,0.00031506,2]
[341481954,1730920310870,-1029.11628941,0.00031506,2]
[341481955,1730920310881,-387.79684655,0.00031506,2]
[341481956,1730920310893,-199.03229756,0.00031506,2]
[341481957,1730920310903,-712.2,0.00031506,2]
[341481958,1730920310912,-1961.14,0.00031506,2]
[341481959,1730920310922,-2553.79,0.00031506,2]
[341481960,1730920310931,-933.76,0.00031506,2]
[341481961,1730920310941,-619.47,0.00031506,2]
[341481962,1730920310951,-1552.17,0.00031506,2]
[341481963,1730920310960,-852.71,0.00031506,2]
[341481964,1730920310970,-985.31,0.00031506,2]
[341481965,1730920310979,-500.0,0.00031506,2]
[341481966,1730920310989,-1319.54,0.00031506,2]
[341481967,1730920310998,-544.73,0.00031506,2]
[341481968,1730920311008,-1040.45,0.00031506,2]
[341481969,1730920311017,-1047.75,0.00031506,2]
[341481970,1730920311027,-809.24,0.00031506,2]
[341481971,1730920311038,-1243.71,0.00031506,2]
[341481972,1730920311048,-508.7,0.00031506,2]
[341481973,1730920311056,-1768.07,0.00031506,2]
[341481974,1730920311067,-3662.42,0.00031506,2]
[341481975,1730920311078,-2961.59,0.00031506,2]
[341481976,1730920311090,-626.81,0.00031506,2]
[341481977,1730920311102,-543.01,0.00031506,2]
[341481978,1730920311113,-706.05,0.00031506,2]
[341481979,1730920311121,-651.62,0.00031506,2]
[341481980,1730920311131,-2251.89,0.00031506,2]
[341481981,1730920311140,-1884.31,0.00031506,2]
[341481982,1730920311150,-732.87,0.00031506,2]
[341481983,1730920311160,-500.0,0.00031506,2]
[341481984,1730920311186,-730.51,0.00031506,2]
[341481985,1730920311195,-2703.76,0.00031506,2]
[341481986,1730920311205,-759.2,0.00031506,2]
[341481987,1730920311214,-601.73,0.00031506,2]
[341481988,1730920311224,-1846.6,0.00031506,2]
[341481989,1730920311233,-500.0,0.00031506,2]
[341481990,1730920311242,-2388.47,0.00031506,2]
[341481991,1730920311251,-500.0,0.00031506,2]
[341481992,1730920311261,-217.442755,0.00031506,2]
[341481993,1730920311270,-10275.63,0.00031506,2]
[341481994,1730920311280,-1087.87,0.00031506,2]
[341481995,1730920311289,-228.879307,0.00031506,2]
[341481996,1730920311298,-1027.83,0.00031506,2]
[341481997,1730920311309,-934.72,0.00031506,2]
[341481998,1730920311319,-500.0,0.00031506,2]
[341481999,1730920311329,-680.02,0.00031506,2]
[341482000,1730920311338,-984.02,0.00031506,2]
[341482001,1730920311349,-500.0,0.00031506,2]
[341482002,1730920311359,-2654.17,0.00031506,2]
[341482003,1730920311369,-763.29,0.00031506,2]
[341482004,1730920311380,-2923.01,0.00031506,2]
[341482005,1730920311389,-500.0,0.00031506,2]
[341482006,1730920311399,-1057.64,0.00031506,2]
[341482007,1730920311409,-500.0,0.00031506,2]
[341482008,1730920311418,-500.0,0.00031506,2]
[341482009,1730920311427,-500.0,0.00031506,2]
[341482010,1730920311436,-669.62,0.00031506,2]
[341482011,1730920311446,-718.6,0.00031506,2]
[341482012,1730920311456,-3084.36,0.00031506,2]
[341482013,1730920311466,-500.0,0.00031506,2]
[341482014,1730920311475,-727.89,0.00031506,2]
[341482015,1730920311484,-1861.65,0.00031506,2]
[341482016,1730920311494,-36940.57,0.00031506,2]
[341482017,1730920311505,-1316.34,0.00031506,2]
[341482018,1730920311516,-3009.75,0.00031506,2]
[341482019,1730920311526,-500.0,0.00031506,2]
[341482020,1730920311536,-500.0,0.00031506,2]
[341482021,1730920311546,-500.0,0.00031506,2]
[341482022,1730920311555,-1149.45,0.00031506,2]
[341482023,1730920311566,-4459.35,0.00031506,2]
[341482024,1730920311577,-539.21,0.00031506,2]
[341482025,1730920311587,-1631.52,0.00031506,2]
[341482026,1730920311596,-777.39,0.00031506,2]
[341482027,1730920311607,-6541.84,0.00031506,2]
[341482028,1730920311618,-500.0,0.00031506,2]
[341482029,1730920311628,-500.0,0.00031506,2]
[341482030,1730920311640,-2448.68,0.00031506,2]
[341482031,1730920311649,-580.25,0.00031506,2]
[341482032,1730920311660,-1611.55,0.00031506,2]
[341482033,1730920311675,-1675.07,0.00031506,2]
[341482034,1730920311695,-2842.56,0.00031506,2]
[341482035,1730920311704,-2090.64,0.00031506,2]
[341482036,1730920311714,-729.17,0.00031506,2]
[341482037,1730920311724,-4119.94,0.00031506,2]
[341482038,1730920311734,-1561.32,0.00031506,2]
[341482039,1730920311743,-500.0,0.00031506,2]
[341482040,1730920311753,-1446.82,0.00031506,2]
[341482041,1730920311762,-908.03,0.00031506,2]
[341482042,1730920311771,-1649.61,0.00031506,2]
[341482043,1730920311780,-3168.62,0.00031506,2]
[341482044,1730920311789,-731.26,0.00031506,2]
[341482045,1730920311798,-3266.44,0.00031506,2]
[341482046,1730920311808,-3106.24,0.00031506,2]
[341482047,1730920311817,-500.0,0.00031506,2]
[341482048,1730920311826,-752.29,0.00031506,2]
[341482049,1730920311835,-2478.44,0.00031506,2]
[341482050,1730920311845,-714.92,0.00031506,2]
[341482051,1730920311854,-645.24,0.00031506,2]
[341482052,1730920311863,-822.65,0.00031506,2]
[341482053,1730920311872,-2093.22,0.00031506,2]
[341482054,1730920311881,-6208.06,0.00031506,2]
[341482055,1730920311890,-1251.86,0.00031506,2]
[341482056,1730920311899,-2267.91,0.00031506,2]
[341482057,1730920311909,-932.36,0.00031506,2]
[341482058,1730920311919,-1161.0,0.00031506,2]
[341482059,1730920311929,-831.94,0.00031506,2]
[341482060,1730920311938,-726.61,0.00031506,2]
[341482061,1730920311947,-627.41,0.00031506,2]
[341482062,1730920311957,-500.0,0.00031506,2]
[341482063,1730920311966,-1064.72,0.00031506,2]
[341482064,1730920311975,-1990.87,0.00031506,2]
[341482065,1730920311985,-1820.52,0.00031506,2]
[341482066,1730920311995,-750.06,0.00031506,2]
[341482067,1730920312004,-500.0,0.00031506,2]
[341482068,1730920312013,-10580.04,0.00031506,2]
[341482069,1730920312023,-1170.47486355,0.00031506,2]
[341482070,1730920313798,500.0,0.00023266,2]
[341482071,1730920313832,500.0,0.00023266,2]
[341482072,1730920313869,500.0,0.00023266,2]
[341482073,1730920313900,419.31359322,0.00023266,2]
[341482074,1730920313932,493.6309685,0.00023266,2]
[341482075,1730920314108,-400.0,0.000269,9]
[341482076,1730920314118,-585.90438923,0.00027297,2]
[341482077,1730920314128,-6275.83070321,0.00027297,2]
[341482078,1730920314138,-10566.14,0.00027397,2]
[341482079,1730920314149,-500.0,0.00027397,2]
[341482080,1730920314159,-500.0,0.00027397,2]
[341482081,1730920314168,-500.0,0.00027397,2]
[341482082,1730920314521,-500.0,0.00027397,2]
[341482083,1730920314533,-500.0,0.00027397,2]
[341482084,1730920314543,-500.0,0.00027397,2]
[341482085,1730920314552,-500.0,0.00027397,2]
[341482086,1730920314561,-500.0,0.00027397,2]
[341482087,1730920314571,-500.0,0.00027397,2]
[341482088,1730920314581,-500.0,0.00027397,2]
[341482089,1730920314590,-4619.92350303,0.00027671,2]
[341482090,1730920314601,-5946.21649697,0.00027671,2]
[341482091,1730920314611,-500.0,0.00027671,2]
[341482092,1730920314620,-500.0,0.00027671,2]
[341482093,1730920314630,-500.0,0.00027671,2]
[341482094,1730920314640,-500.0,0.00027671,2]
[341482095,1730920314651,-500.0,0.00027671,2]
[341482096,1730920314661,-500.0,0.00027671,2]
[341482097,1730920314671,-500.0,0.00027671,2]
[341482098,1730920314683,-500.0,0.00027671,2]
[341482099,1730920314693,-10566.14,0.00027945,2]
[341482100,1730920314702,-500.0,0.00027945,2]
[341482101,1730920314711,-500.0,0.00027945,2]
[341482102,1730920314722,-500.0,0.00027945,2]
[341482103,1730920314732,-500.0,0.00027945,2]
[341482104,1730920314742,-244.73,0.00027945,2]
[341482105,1730920314753,-420.56957464,0.00028036,5]
[341482106,1730920314764,-151.0,0.00028219,7]
[341482107,1730920314775,-10566.14,0.00028219,2]
[341482108,1730920314787,-500.0,0.00028219,2]
[341482109,1730920314797,-500.0,0.00028219,2]
[341482110,1730920314808,-10566.14,0.00028493,2]
[341482111,1730920314819,-502.628698,0.00028493,2]
[341482112,1730920314830,-436.00969,0.00028493,7]
[341482113,1730920314840,-500.0,0.00028493,2]
[341482114,1730920314849,-154.877745,0.00028767,7]
[341482115,1730920314859,-10566.14,0.00028767,2]
[341482116,1730920314868,-436.00969,0.00028767,7]
[341482117,1730920314877,-500.0,0.00028767,2]
[341482118,1730920314887,-10566.14,0.00029041,2]
[341482119,1730920314896,-436.00969,0.00029041,7]
[341482120,1730920314906,-500.0,0.00029041,2]
[341482121,1730920314915,-10566.14,0.00029315,2]
[341482122,1730920314927,-500.0,0.00029315,2]
[341482123,1730920314939,-4036.84,0.00029589,2]
[341482124,1730920314949,-10566.14,0.00029589,2]
[341482125,1730920314959,-436.00969,0.00029589,7]
[341482126,1730920314968,-500.0,0.00029589,2]
[341482127,1730920314977,-4036.84,0.00029863,2]
[341482128,1730920314986,-10566.14,0.00029863,2]
[341482129,1730920314995,-436.00969,0.00029863,7]
[341482130,1730920315005,-630.09015688,0.00029863,2]
[341482131,1730920315014,-500.0,0.00029903,5]
[341482132,1730920315023,-4036.84,0.00030136,2]
[341482133,1730920315032,-10566.14,0.00030136,2]
[341482134,1730920315041,-500.0,0.0003041,2]
[341482135,1730920315051,-4036.84,0.0003041,2]
[341482136,1730920315060,-10566.14,0.0003041,2]
[341482137,1730920315069,-436.00969,0.0003041,7]
[341482138,1730920315080,-500.0,0.00030684,2]
[341482139,1730920315091,-4036.84,0.00030684,2]
[341482140,1730920315100,-10566.14,0.00030684,2]
[341482141,1730920315110,-4036.84,0.00030958,2]
[341482142,1730920315119,-10566.14,0.00030958,2]
[341482143,1730920315129,-500.0,0.00031232,2]
[341482144,1730920315139,-4036.84,0.00031232,2]
[341482145,1730920315148,-10566.14,0.00031232,2]
[341482146,1730920315158,-500.0,0.00031273,5]
[341482147,1730920315168,-367.72513645,0.00031506,2]
[341482148,1730920315183,-5050.46,0.00031506,2]
[341482149,1730920315193,-1128.8,0.00031506,2]
[341482150,1730920315203,-7716.34,0.00031506,2]
[341482151,1730920315213,-3986.66,0.00031506,2]
[341482152,1730920315223,-656.74,0.00031506,2]
[341482153,1730920315232,-5027.84,0.00031506,2]
[341482154,1730920315242,-500.63,0.00031506,2]
[341482155,1730920315252,-4036.63,0.00031506,2]
[341482156,1730920315262,-6250.81,0.00031506,2]
[341482157,1730920315272,-934.04,0.00031506,2]
[341482158,1730920315281,-500.0,0.00031506,2]
[341482159,1730920315291,-2428.87,0.00031506,2]
[341482160,1730920315301,-3700.97,0.00031506,2]
[341482161,1730920315310,-1135.07,0.00031506,2]